bitfinex/quotes_SOLUSD_20250517
["timestamp","ask_amount","ask_price","bid_price","bid_amount"]
[1747522935022,16.37652658,165.22,165.12,36.38380936]
[1747522935538,31.50786661,165.22,165.13,19.48]
[1747522935847,6.0536352,165.19,165.13,19.48]
[1747522936227,6.0536352,165.19,165.12,19.46]
[1747522936423,6.0536352,165.19,165.11,25.3964775]
[1747522936424,31.51171378,165.19,165.11,19.34]
[1747522936828,31.51171378,165.19,165.1,33.55542149]
[1747522937545,10.32399057,165.18,165.1,27.4985]
[1747522937750,10.32399057,165.18,165.1,33.55532377]
[1747522938254,26.0,165.2,165.1,33.55532377]
[1747522938545,6.05326876,165.2,165.11,1.21111255]
[1747522939648,16.37725933,165.2,165.11,1.21111255]
[1747522939838,16.37725933,165.2,165.1,27.4985]
[1747522940281,26.0,165.18,165.1,13.99539192]
[1747522940541,26.0,165.18,165.11,19.62]
[1747522941356,6.05436822,165.17,165.11,25.6764653]
[1747522941556,26.0,165.2,165.11,25.6764653]
[1747522941730,6.05289914,165.22,165.12,1.2110245]
[1747522942127,16.37688971,165.22,165.12,1.2110245]
[1747522942432,28.97363943,165.21,165.11,70.9764653]
[1747522942847,10.32399057,165.2,165.11,70.9764653]
[1747522943355,6.05326876,165.2,165.11,72.18743873]
[1747522943658,6.05253601,165.22,165.12,19.36]
[1747522943850,6.05253601,165.22,165.13,1.21071377]
[1747522944881,51.39233079,165.23,165.14,6.05546808]
[1747522945876,51.39233079,165.23,165.14,21.19413829]
[1747522946383,61.71632136,165.23,165.13,51.35580973]
[1747522946677,10.32399057,165.19,165.13,45.3]
[1747522947075,10.32399057,165.18,165.11,19.66]
[1747522947288,36.32399057,165.17,165.09,25.71720719]
[1747522948378,42.37870958,165.17,165.08,6.057669]
[1747522948682,42.37870958,165.17,165.08,25.717669]
[1747522949471,42.37870958,165.17,165.08,25.217669]
[1747522949766,10.32399057,165.18,165.08,40.36184152]
[1747522949955,26.0,165.19,165.09,1.21116064]
[1747522950563,10.32399057,165.21,165.11,26.0]
[1747522950772,29.66399057,165.23,165.12,27.21082961]
[1747522950946,25.3921894,165.23,165.13,8.0823]
[1747522951145,45.34,165.23,165.14,20.87063748]
[1747522951564,51.39225987,165.23,165.15,6.05510142]
[1747522951771,61.71625044,165.23,165.15,6.05510142]
[1747522951975,51.39225987,165.23,165.15,6.05510142]
[1747522952147,61.71625044,165.23,165.15,6.05510142]
[1747522952349,10.32399057,165.21,165.14,19.74]
[1747522952689,28.97363943,165.22,165.14,19.74]
[1747522953289,51.39225987,165.23,165.14,19.74]
[1747522953456,51.39225987,165.23,165.15,6.05510142]
[1747522953988,6.05184197,165.24,165.15,21.19285497]
[1747522954163,6.05152343,165.25,165.15,47.19285497]
[1747522954350,6.05152343,165.25,165.16,1.21057862]
[1747522954847,6.05113746,165.26,165.16,1.21057862]
[1747522955743,6.05113746,165.26,165.17,6.05436822]
[1747522958379,16.37512803,165.26,165.17,6.05436822]
[1747522961082,19.36,165.28,165.18,1.21048507]
[1747522961394,6.05011357,165.29,165.21,1.5829]
[1747522961562,6.05011357,165.29,165.22,19.74]
[1747522962393,6.05011357,165.29,165.23,6.0521697]
[1747522962885,6.04970618,165.3,165.23,6.0521697]
[1747522963073,16.37369675,165.3,165.23,6.0521697]
[1747522963786,6.04936599,165.31,165.23,6.0521697]
[1747522965573,26.0,165.29,165.21,1.5829]
[1747522965882,10.32399057,165.27,165.21,1.5829]
[1747522966256,10.32399057,165.27,165.2,32.06157154]
[1747522966257,10.32399057,165.25,165.2,19.92]
[1747522966785,10.32399057,165.24,165.2,19.92]
[1747522966980,18.64964886,165.28,165.2,25.97315507]
[1747522967155,10.32399057,165.27,165.2,25.97315507]
[1747522968287,16.37495082,165.27,165.2,25.97315507]
[1747522968470,10.32399057,165.28,165.2,25.97315507]
[1747522969261,26.0,165.29,165.2,25.97315507]
[1747522969459,10.32399057,165.28,165.2,25.97315507]
[1747522969662,13.97371718,165.33,165.23,26.0]
[1747522969881,6.04861718,165.33,165.24,2.81350939]
[1747522970191,10.32399057,165.31,165.24,1.6034]
[1747522970393,10.32399057,165.3,165.23,6.3241]
[1747522970990,10.32399057,165.28,165.22,20.2]
[1747522971371,16.49482438,165.28,165.22,20.2]
[1747522971586,22.5448858,165.29,165.23,6.0521697]
[1747522971773,48.54454079,165.3,165.23,6.0521697]
[1747522973792,48.54454079,165.3,165.22,26.2524349]
[1747522974005,48.54454079,165.3,165.21,20.18]
[1747522974006,16.49482438,165.28,165.21,20.18]
[1747522974367,35.14447324,165.29,165.21,20.18]
[1747522975795,41.19480554,165.29,165.22,6.05253601]
[1747522976694,24.69998116,165.29,165.22,6.05253601]
[1747522976901,6.0503323,165.29,165.22,6.05253601]
[1747522977096,48.54453627,165.3,165.22,6.05253601]
[1747522978002,26.0,165.3,165.22,6.05253601]
[1747522978180,6.04891652,165.32,165.22,22.39409278]
[1747522978382,24.06267525,165.34,165.23,26.0]
[1747522979689,24.06267525,165.34,165.24,6.05180343]
[1747522980804,16.49482438,165.33,165.24,6.05180343]
[1747522981096,16.49482438,165.31,165.24,6.05180343]
[1747522981471,18.64964886,165.33,165.24,6.05180343]
[1747522981779,16.49482438,165.31,165.24,6.05180343]
[1747522981980,22.5444003,165.31,165.24,6.05180343]
[1747522983602,6.0488749,165.32,165.24,6.05180343]
[1747522983772,41.19308961,165.33,165.24,6.05180343]
[1747522984190,6.04861637,165.33,165.24,6.05180343]
[1747522984484,22.54344075,165.33,165.24,6.05180343]
[1747522984692,6.04861637,165.33,165.24,6.05180343]
[1747522984885,33.56759425,165.34,165.24,21.18131202]
[1747522985084,32.04819425,165.34,165.24,21.18131202]
[1747522985342,32.04819425,165.34,165.25,6.6353]
[1747522985503,48.54301863,165.34,165.25,6.6353]
[1747522985904,48.54301863,165.34,165.26,6.05107103]
[1747522986999,6.0488749,165.32,165.26,6.05107103]
[1747522987492,6.04858961,165.33,165.26,6.05107103]
[1747522988582,32.04824165,165.34,165.26,6.05107103]
[1747522988774,48.54306603,165.34,165.26,6.05107103]
[1747522988987,22.54306603,165.34,165.26,6.05107103]
[1747522989197,22.54270313,165.35,165.26,21.17874862]
[1747522989397,22.54270313,165.35,165.26,22.84124862]
[1747522991013,6.04787875,165.35,165.26,22.84124862]
[1747522995796,10.30045139,165.34,165.26,7.71357103]
[1747522996800,6.04850904,165.33,165.26,7.71357103]
[1747522997291,16.3487106,165.34,165.26,7.71357103]
[1747522997497,6.04825921,165.34,165.26,7.71357103]
[1747522999714,32.04753615,165.36,165.27,1.20988043]
[1747523001129,32.04753615,165.36,165.26,22.84124862]
[1747523001498,6.04814322,165.34,165.26,22.84124862]
[1747523002597,6.0479006,165.35,165.26,22.84124862]
[1747523002792,6.0479006,165.35,165.26,68.14124862]
[1747523005021,6.0479006,165.35,165.26,53.01357103]
[1747523005022,10.30045139,165.34,165.26,53.01357103]
[1747523005194,10.30045139,165.33,165.27,19.94]
[1747523006117,10.30045139,165.32,165.26,65.24]
[1747523006290,39.81699306,165.35,165.23,4.32788381]
[1747523006291,10.30045139,165.29,165.23,4.32788381]
[1747523006498,10.30045139,165.29,165.23,24.26788381]
[1747523007104,1.5339,165.32,165.23,4.32788381]
[1747523007105,16.3507902,165.28,165.23,4.32788381]
[1747523008324,10.30045139,165.27,165.23,4.32788381]
[1747523008709,10.30045139,165.26,165.21,19.94]
[1747523008910,10.30045139,165.27,165.21,19.94]
[1747523009415,10.30045139,165.25,165.18,9.79667306]
[1747523009728,10.30045139,165.24,165.18,28.11037306]
[1747523010018,10.30045139,165.24,165.18,8.17037306]
[1747523010200,6.05253601,165.22,165.18,8.17037306]
[1747523010407,16.3529874,165.22,165.18,8.17037306]
[1747523012034,10.30045139,165.21,165.18,8.17037306]
[1747523012206,10.30045139,165.19,165.18,8.17037306]
[1747523012728,28.95010025,165.2,165.13,19.94]
[1747523013208,10.30045139,165.18,165.13,19.94]
[1747523013527,10.30045139,165.17,165.11,24.26788381]
[1747523013903,10.30045139,165.16,165.11,24.26788381]
[1747523014228,6.05510142,165.15,165.11,24.26788381]
[1747523014540,6.05510142,165.15,165.11,4.32788381]
[1747523014831,16.35524813,165.16,165.09,6.05728887]
[1747523015797,16.35524813,165.16,165.08,32.10216306]
[1747523017213,16.35524813,165.16,165.08,12.18216306]
[1747523017421,10.30045139,165.1,165.05,4.32788381]
[1747523017915,10.30045139,165.11,165.05,4.32788381]
[1747523018105,10.30045139,165.13,165.05,4.32788381]
[1747523018614,18.64964886,165.14,165.05,10.3865961]
[1747523018615,10.30045139,165.14,165.05,10.3865961]
[1747523018825,10.30045139,165.14,165.05,6.05871229]
[1747523019408,16.35598114,165.14,165.05,6.05871229]
[1747523020632,10.30045139,165.14,165.05,21.20563746]
[1747523021735,16.35604635,165.14,165.05,21.20563746]
[1747523022847,10.30045139,165.14,165.05,21.20563746]
[1747523023030,56.38045139,165.15,165.05,22.41697654]
[1747523023823,56.38045139,165.15,165.05,27.35087256]
[1747523024035,20.08,165.15,165.05,27.35087256]
[1747523024735,20.08,165.15,165.05,72.65087256]
[1747523025049,42.35523836,165.16,165.05,72.65087256]
[1747523025215,18.64964886,165.21,165.11,6.1915]
[1747523025415,28.95010025,165.21,165.12,19.88]
[1747523025619,10.30045139,165.21,165.12,19.88]
[1747523026635,16.35335375,165.21,165.13,6.05583479]
[1747523027230,10.30045139,165.2,165.13,6.05583479]
[1747523028441,10.30045139,165.17,165.11,25.91627138]
[1747523028828,10.30045139,165.19,165.11,25.91627138]
[1747523029234,10.30045139,165.17,165.11,25.91627138]
[1747523030145,10.30045139,165.19,165.11,25.91627138]
[1747523030721,16.35465561,165.18,165.11,25.91627138]
[1747523032145,6.05420422,165.18,165.11,25.91627138]
[1747523032949,18.64964886,165.2,165.11,25.91627138]
[1747523033146,36.30045139,165.21,165.12,1.21094125]
[1747523033320,26.0,165.21,165.12,1.21094125]
[1747523033646,62.94437032,165.24,165.12,1.21094125]
[1747523033647,60.64702167,165.24,165.13,32.4033]
[1747523034545,60.64702167,165.24,165.14,21.19413829]
[1747523034846,28.95010025,165.23,165.14,6.05546808]
[1747523035220,60.64702167,165.24,165.14,7.26618421]
[1747523039236,50.34657028,165.24,165.14,22.40485442]
[1747523039444,60.64702167,165.24,165.14,22.40485442]
[1747523039747,44.29472146,165.24,165.14,22.40485442]
[1747523040352,24.41472146,165.24,165.15,1.6101]
[1747523040544,17.87980806,165.26,165.16,1.21048732]
[1747523040849,17.87980806,165.26,165.17,19.88]
[1747523041463,10.30045139,165.25,165.18,6.05400169]
[1747523042247,10.30045139,165.24,165.18,6.05400169]
[1747523042828,10.30045139,165.25,165.18,6.05400169]
[1747523043167,16.35160806,165.26,165.18,6.05400169]
[1747523043462,16.35161907,165.26,165.18,21.18900592]
[1747523044127,10.30045139,165.26,165.18,21.18900592]
[1747523044331,28.95010025,165.28,165.18,21.18900592]
[1747523044866,6.05045051,165.28,165.19,6.4325]
[1747523045031,16.3509019,165.28,165.19,6.4325]
[1747523045386,10.30045139,165.26,165.18,6.05400169]
[1747523045525,10.30045139,165.24,165.18,6.05400169]
[1747523046141,10.30045139,165.23,165.17,45.3]
[1747523046343,10.30045139,165.22,165.17,45.3]
[1747523046534,10.30045139,165.22,165.15,28.1486]
[1747523046926,16.35305847,165.22,165.16,6.05468478]
[1747523047127,6.05260708,165.22,165.16,6.05468478]
[1747523047326,16.35305847,165.22,165.16,6.05468478]
[1747523049532,16.35305847,165.22,165.15,8.2686]
[1747523049864,10.30045139,165.21,165.15,21.4701]
[1747523050659,10.30045139,165.21,165.15,27.52513528]
[1747523051857,35.36116868,165.24,165.15,27.52513528]
[1747523051858,37.88225139,165.24,165.15,27.52513528]
[1747523052046,36.30045139,165.24,165.15,27.52513528]
[1747523052846,42.35237752,165.24,165.15,42.66288883]
[1747523053554,32.05192613,165.24,165.15,42.66288883]
[1747523053961,32.05192613,165.24,165.15,87.96288883]
[1747523054445,6.05192613,165.24,165.15,87.96288883]
[1747523054759,6.05192613,165.24,165.15,89.17346071]
[1747523054959,16.35197753,165.25,165.15,89.17346071]
[1747523055463,6.05152614,165.25,165.15,89.17346071]
[1747523056960,16.35197753,165.25,165.15,89.17346071]
[1747523058352,10.30045139,165.23,165.15,72.82513528]
[1747523058560,10.30045139,165.22,165.15,46.9101]
[1747523058766,10.30045139,165.19,165.15,45.3]
[1747523058965,10.30045139,165.17,165.13,4.32788381]
[1747523059157,10.30045139,165.16,165.13,4.32788381]
[1747523059345,10.30045139,165.17,165.13,4.32788381]
[1747523059544,10.30045139,165.18,165.13,4.32788381]
[1747523059742,10.30045139,165.19,165.13,4.32788381]
[1747523060159,10.30045139,165.19,165.12,6.05615771]
[1747523060775,16.35445308,165.18,165.11,25.85644745]
[1747523061875,10.30045139,165.17,165.09,6.05730207]
[1747523062043,10.30045139,165.17,165.1,19.8]
[1747523062240,10.30045139,165.18,165.1,19.8]
[1747523062880,16.35419506,165.19,165.1,19.8]
[1747523063572,10.30045139,165.19,165.1,19.8]
[1747523063748,6.05337879,165.2,165.11,1.21087285]
[1747523064477,6.05337879,165.2,165.12,6.05620155]
[1747523065265,16.35383018,165.2,165.12,6.05620155]
[1747523066977,16.35383018,165.2,165.11,6.05656834]
[1747523068281,20.25484886,165.22,165.12,27.21088713]
[1747523068282,1.6052,165.22,165.12,27.21088713]
[1747523068471,36.30045139,165.24,165.13,7.7996]
[1747523068673,10.30045139,165.23,165.14,1.21062775]
[1747523069361,16.35225482,165.24,165.14,46.51062775]
[1747523070378,16.35225482,165.24,165.15,6.05510142]
[1747523070681,10.30045139,165.22,165.16,19.76]
[1747523071649,6.05290236,165.21,165.16,19.76]
[1747523073381,6.05267567,165.22,165.16,25.81459686]
[1747523073595,6.05107103,165.26,165.16,25.81459686]
[1747523073757,10.30045139,165.25,165.16,27.02531165]
[1747523073964,25.87084075,165.27,165.16,87.46214865]
[1747523075250,10.30045139,165.23,165.16,25.81459686]
[1747523076259,6.05253601,165.22,165.16,25.81459686]
[1747523076581,10.30045139,165.21,165.16,19.76]
[1747523076958,10.30045139,165.21,165.14,6.05518617]
[1747523077160,10.30045139,165.21,165.14,25.77518617]
[1747523078296,6.05326876,165.2,165.14,25.77518617]
[1747523078499,36.30045139,165.23,165.15,1.21081364]
[1747523078663,6.05229327,165.23,165.15,1.21081364]
[1747523079696,6.05193534,165.24,165.15,1.21081364]
[1747523079997,6.05148151,165.25,165.15,1.21081364]
[1747523080378,6.05148151,165.25,165.16,6.0547348]
[1747523080575,16.3519329,165.25,165.16,6.0547348]
[1747523080977,6.05148151,165.25,165.16,21.1915718]
[1747523082402,6.04960677,165.3,165.18,21.18900592]
[1747523082571,10.30045139,165.28,165.19,1.21026315]
[1747523082772,10.30045139,165.28,165.2,19.7]
[1747523083096,16.35005816,165.3,165.2,19.7]
[1747523084195,16.35005816,165.3,165.21,6.05290236]
[1747523085178,10.30045139,165.29,165.21,6.05290236]
[1747523085710,6.04960677,165.3,165.21,7.26313305]
[1747523086806,6.04960677,165.3,165.21,22.39538896]
[1747523089913,6.04960677,165.3,165.21,67.69538896]
[1747523091200,51.74931111,165.31,165.21,67.69538896]
[1747523091382,6.04814322,165.34,165.22,8.2819]
[1747523091580,6.04814322,165.34,165.23,1.20986393]
[1747523091771,6.04814322,165.34,165.26,26.0]
[1747523091973,25.72741627,165.36,165.27,19.64]
[1747523092199,25.72741627,165.36,165.28,1.20963436]
[1747523092387,25.72741627,165.36,165.28,9.49153436]
[1747523092695,7.3001331,165.37,165.28,9.49153436]
[1747523092894,4.2510581,165.39,165.28,9.49153436]
[1747523093195,4.2510581,165.39,165.28,54.79153436]
[1747523093494,10.29750764,165.39,165.29,21.1749047]
[1747523093681,10.29750764,165.39,165.3,1.20944913]
[1747523093882,6.04644954,165.39,165.3,1.20944913]
[1747523094501,16.34690093,165.39,165.3,1.20944913]
[1747523094705,10.30045139,165.38,165.3,1.20944913]
[1747523095391,6.04704601,165.37,165.29,6.04997277]
[1747523096615,42.3474974,165.37,165.29,6.04997277]
[1747523097608,32.04704601,165.37,165.29,6.04997277]
[1747523098109,26.0,165.37,165.29,6.04997277]
[1747523098410,6.04673636,165.38,165.3,1.20946771]
[1747523098914,16.34718775,165.38,165.3,45.3]
[1747523099084,10.30045139,165.37,165.3,45.3]
[1747523099284,10.30045139,165.34,165.3,45.3]
[1747523099499,44.64964886,165.37,165.27,25.67069039]
[1747523099500,10.30045139,165.33,165.27,25.67069039]
[1747523099713,6.0488749,165.32,165.27,25.67069039]
[1747523100005,6.0488749,165.32,165.27,19.62]
[1747523100213,6.0488749,165.32,165.25,19.68]
[1747523100214,16.34932629,165.32,165.25,19.68]
[1747523100414,10.30045139,165.3,165.25,19.62]
[1747523100599,26.0,165.31,165.23,10.08685865]
[1747523100600,10.30045139,165.28,165.23,10.08685865]
[1747523100798,36.30045139,165.31,165.23,16.1388858]
[1747523101099,26.0,165.31,165.23,16.1388858]
[1747523102216,6.04960677,165.3,165.23,11.81100199]
[1747523103510,32.04933763,165.31,165.23,11.81100199]
[1747523104316,6.04933763,165.31,165.23,11.81100199]
[1747523104687,10.30045139,165.31,165.23,11.81100199]
[1747523105088,16.34932629,165.32,165.23,11.81100199]
[1747523106100,6.04960677,165.3,165.23,11.81100199]
[1747523108091,10.30045139,165.32,165.24,1.21004205]
[1747523108500,10.30045139,165.31,165.23,11.81100199]
[1747523109695,16.35003686,165.31,165.23,11.81100199]
[1747523110225,10.30045139,165.3,165.23,11.81100199]
[1747523110427,10.30045139,165.3,165.24,19.58]
[1747523111722,6.04997277,165.29,165.24,19.58]
[1747523112098,6.04997277,165.29,165.23,5.75897484]
[1747523112099,10.30045139,165.27,165.23,5.75897484]
[1747523112302,10.30045139,165.25,165.23,5.75897484]
[1747523112517,10.30045139,165.24,165.23,5.75897484]
[1747523112909,10.30045139,165.25,165.23,5.75897484]
[1747523114129,6.05180343,165.24,165.23,5.75897484]
[1747523115334,6.05149119,165.25,165.23,5.75897484]
[1747523118340,16.35194258,165.25,165.23,5.75897484]
[1747523119334,10.30045139,165.24,165.23,5.75897484]
[1747523120239,16.35225482,165.24,165.23,5.75897484]
[1747523121835,42.35225482,165.24,165.23,5.75897484]
[1747523122723,32.05180343,165.24,165.23,5.75897484]
[1747523122923,26.0,165.24,165.23,5.75897484]
[1747523124641,32.05180343,165.24,165.23,5.75897484]
[1747523125643,26.0,165.24,165.23,5.75897484]
[1747523126245,42.35164927,165.26,165.23,5.75897484]
[1747523127227,10.30045139,165.25,165.23,5.75897484]
[1747523128337,32.05119788,165.26,165.23,5.75897484]
[1747523128537,42.35164927,165.26,165.23,5.75897484]
[1747523129051,10.30045139,165.25,165.23,5.75897484]
[1747523129342,10.30045139,165.24,165.23,5.75897484]
[1747523129728,28.95010025,165.24,165.23,5.75897484]
[1747523129934,18.64964886,165.23,165.16,45.3]
[1747523130237,10.30045139,165.21,165.15,19.52]
[1747523130963,10.30045139,165.19,165.13,19.6]
[1747523131166,16.35449887,165.18,165.12,27.3683]
[1747523131325,16.35449887,165.18,165.12,33.4244886]
[1747523131924,10.30045139,165.19,165.12,33.4244886]
[1747523132543,10.30045139,165.18,165.12,33.4244886]
[1747523132853,10.30045139,165.17,165.1,19.52]
[1747523133236,6.0547348,165.16,165.1,6.05692802]
[1747523133534,16.35518619,165.16,165.1,25.57692802]
[1747523133955,16.35518619,165.16,165.1,6.05692802]
[1747523134655,10.30045139,165.17,165.1,6.05692802]
[1747523135246,6.05400169,165.18,165.1,6.05692802]
[1747523135549,10.30045139,165.17,165.1,6.05692802]
[1747523135740,6.0547348,165.16,165.09,25.59730207]
[1747523139558,16.35493941,165.17,165.09,25.59730207]
[1747523140757,16.35493941,165.17,165.09,25.55730207]
[1747523141059,10.30045139,165.16,165.09,25.55730207]
[1747523141462,10.30045139,165.15,165.09,6.05730207]
[1747523142161,10.30045139,165.14,165.09,6.05730207]
[1747523142581,16.35603512,165.14,165.08,33.36054573]
[1747523143272,10.30045139,165.13,165.08,6.05754573]
[1747523143978,10.30045139,165.14,165.08,6.05754573]
[1747523144770,51.9908,165.17,165.08,6.05754573]
[1747523144771,45.48,165.17,165.08,6.05754573]
[1747523144975,61.83488387,165.17,165.08,6.05754573]
[1747523145175,10.30045139,165.16,165.08,6.05754573]
[1747523146259,6.05510142,165.15,165.08,6.05754573]
[1747523147375,16.35532412,165.16,165.08,6.05754573]
[1747523147677,61.83493407,165.17,165.08,21.20171825]
[1747523147971,61.83493407,165.17,165.09,1.5196]
[1747523148879,10.30045139,165.16,165.09,1.5196]
[1747523149183,10.30045139,165.14,165.08,6.05754573]
[1747523149982,16.35615799,165.14,165.08,6.05754573]
[1747523151082,10.30045139,165.14,165.08,6.05754573]
[1747523151298,16.35529861,165.16,165.08,6.05754573]
[1747523151486,6.05484722,165.16,165.08,6.05754573]
[1747523151797,10.30045139,165.16,165.08,21.20171825]
[1747523153585,42.35492837,165.17,165.08,21.20171825]
[1747523154566,10.30045139,165.16,165.08,21.20171825]
[1747523155478,32.05447698,165.17,165.08,21.20171825]
[1747523155682,16.35520983,165.16,165.08,21.20171825]
[1747523157782,10.30045139,165.16,165.08,21.20171825]
[1747523158304,42.35495886,165.17,165.08,21.20171825]
[1747523160702,16.35522954,165.16,165.08,21.20171825]
[1747523162685,10.30045139,165.15,165.08,6.05754573]
[1747523163004,10.30045139,165.14,165.08,6.05754573]
[1747523163205,10.30045139,165.11,165.07,53.29634899]
[1747523163501,10.30045139,165.1,165.07,7.99634899]
[1747523163810,10.30045139,165.11,165.07,7.99634899]
[1747523164798,16.35710124,165.11,165.07,7.99634899]
[1747523171818,28.95010025,165.1,165.07,7.99634899]
[1747523172022,10.30045139,165.08,165.07,7.99634899]
[1747523172325,10.30045139,165.08,165.01,25.48018225]
[1747523172501,10.30045139,165.08,165.01,6.06018225]
[1747523173604,6.05803598,165.07,165.01,6.06018225]
[1747523174413,16.35848737,165.07,165.01,6.06018225]
[1747523176321,10.30045139,165.07,165.01,6.06018225]
[1747523176521,16.35823609,165.08,165.01,6.06018225]
[1747523177211,10.30045139,165.06,165.0,26.99768822]
[1747523178216,10.30045139,165.07,165.0,26.99768822]
[1747523178420,16.35885439,165.06,165.0,1.5172]
[1747523178729,10.30045139,165.05,164.99,10.83940646]
[1747523178919,10.30045139,165.04,164.99,4.79720646]
[1747523180006,16.35988411,165.04,164.99,4.79720646]
[1747523180228,10.30045139,165.02,164.99,4.79720646]
[1747523180434,10.30045139,165.01,164.99,4.79720646]
[1747523180858,10.30045139,165.02,164.99,4.79720646]
[1747523181158,10.30045139,165.03,164.99,4.79720646]
[1747523181340,10.30045139,165.02,164.99,4.79720646]
[1747523181655,10.30045139,165.01,164.99,4.79720646]
[1747523182250,10.30045139,165.02,164.99,4.79720646]
[1747523184566,10.30045139,165.03,164.99,4.79720646]
[1747523185859,10.30045139,165.02,164.99,4.79720646]
[1747523187136,10.30045139,165.03,164.99,4.79720646]
[1747523187537,16.35970416,165.04,164.99,4.79720646]
[1747523188359,44.64964886,165.05,164.99,10.85813739]
[1747523188360,42.35935831,165.05,164.99,10.85813739]
[1747523188537,10.30045139,165.04,164.99,10.85813739]
[1747523189365,10.30045139,165.03,164.99,4.79720646]
[1747523190558,16.360099,165.03,164.99,4.79720646]
[1747523190735,10.30045139,165.02,164.99,4.79720646]
[1747523191140,10.30045139,165.0,164.99,4.79720646]
[1747523191654,28.95010025,165.0,164.99,4.79720646]
[1747523192536,83.11576336,165.0,164.99,4.79720646]
[1747523192738,89.17636942,165.0,164.99,4.79720646]
[1747523193139,44.64964886,164.96,164.88,1.5775]
[1747523193377,10.30045139,164.91,164.86,30.41278381]
[1747523193657,10.30045139,164.91,164.86,10.97278381]
[1747523194247,10.30045139,164.87,164.86,4.32788381]
[1747523194449,26.0,164.84,164.82,18.18472013]
[1747523194653,10.30045139,164.83,164.82,18.18472013]
[1747523195241,28.95010025,164.83,164.82,18.18472013]
[1747523195667,28.95010025,164.83,164.82,9.5002421]
[1747523196071,26.0,164.83,164.82,9.5002421]
[1747523196281,36.30045139,164.83,164.82,9.5002421]
[1747523197786,36.30045139,164.83,164.76,6.06940747]
[1747523198074,10.30045139,164.81,164.76,6.06940747]
[1747523198258,10.30045139,164.82,164.76,6.06940747]
[1747523198577,36.30045139,164.82,164.76,6.06940747]
[1747523198965,10.30045139,164.83,164.74,21.24559911]
[1747523199166,36.30045139,164.83,164.74,21.24559911]
[1747523199887,10.30045139,164.84,164.74,21.24559911]
[1747523200582,10.30045139,164.83,164.74,21.24559911]
[1747523203693,29.74045139,164.88,164.74,21.24559911]
[1747523203694,6.06521439,164.88,164.75,6.0956]
[1747523203895,19.44,164.88,164.78,26.0]
[1747523204072,19.44,164.88,164.79,20.26]
[1747523204274,10.30045139,164.85,164.79,20.26]
[1747523204586,10.30045139,164.84,164.79,20.26]
[1747523205595,6.06623935,164.85,164.79,20.26]
[1747523205786,10.30045139,164.84,164.79,20.26]
[1747523206086,10.30045139,164.84,164.79,26.32819895]
[1747523206387,16.36669074,164.85,164.79,26.32819895]
[1747523207290,26.0,164.86,164.79,26.32819895]
[1747523207504,26.0,164.87,164.79,26.32819895]
[1747523208791,42.36589838,164.87,164.79,26.32819895]
[1747523209168,26.0,164.87,164.79,41.49902242]
[1747523209584,19.44,164.88,164.79,41.49902242]
[1747523209770,10.30045139,164.86,164.79,6.06819895]
[1747523210087,10.30045139,164.86,164.79,26.46819895]
[1747523211108,10.30045139,164.84,164.78,6.06861639]
[1747523211311,10.30045139,164.83,164.78,6.06861639]
[1747523212191,10.30045139,164.83,164.77,6.06906597]
[1747523213099,10.30045139,164.84,164.77,6.06906597]
[1747523213313,32.06583149,164.86,164.77,6.06906597]
[1747523213476,10.30045139,164.85,164.77,21.24173089]
[1747523213903,10.30045139,164.84,164.77,6.06906597]
[1747523214097,10.30045139,164.85,164.77,6.06906597]
[1747523214309,15.15955371,164.92,164.77,7.28251831]
[1747523214596,10.30045139,164.88,164.78,26.0]
[1747523214815,10.30045139,164.88,164.78,71.3]
[1747523215417,10.30045139,164.87,164.78,45.3]
[1747523215579,10.30045139,164.85,164.78,45.3]
[1747523216477,16.36627901,164.86,164.79,6.06832938]
[1747523216684,26.0,164.87,164.79,22.45259493]
[1747523217303,36.30045139,164.89,164.8,1.582]
[1747523217599,26.0,164.89,164.82,6.5969]
[1747523217781,26.0,164.89,164.82,27.0169]
[1747523218177,32.06478986,164.89,164.82,27.0169]
[1747523218396,42.36524125,164.89,164.82,33.08400553]
[1747523218588,10.30045139,164.88,164.82,33.08400553]
[1747523218793,42.36524125,164.89,164.82,33.08400553]
[1747523219809,10.30045139,164.88,164.82,27.0169]
[1747523220107,32.06478986,164.89,164.82,20.42]
[1747523220108,10.30045139,164.87,164.82,20.42]
[1747523220304,10.30045139,164.85,164.8,1.582]
[1747523220489,16.36675857,164.85,164.78,12.66528485]
[1747523222077,10.30045139,164.88,164.78,27.83702899]
[1747523222282,26.0,164.87,164.78,27.83702899]
[1747523222603,10.30045139,164.9,164.79,1.21330557]
[1747523222904,16.3647897,164.9,164.79,1.21330557]
[1747523223510,10.30045139,164.89,164.79,1.21330557]
[1747523224218,16.3647897,164.9,164.8,21.23786407]
[1747523225192,10.30045139,164.89,164.8,21.23786407]
[1747523225709,6.06501698,164.88,164.8,21.23786407]
[1747523226215,16.36546837,164.88,164.8,6.06796116]